Cogmind - Beta 11 X6 @@@ ROGUE MODE // 2021.07.28 @ 23:44:54 Player: Runia Result: Destroyed self with Precision Rocket Launcher Performance ------------- Evolutions (4) 2000 Regions Visited (11) 2200 Robots Destroyed (202) 1010 Value Destroyed (7181) 7181 Prototype IDs (11) 220 Alien Tech Used (0) 0 Bonus (3355) 3355 TOTAL SCORE: 15966 Bonus ------- High Alert Combat Kills 1271 Follower Combat Kills 174 Entered Garrisons 600 Used RIF Installer 1500 Friendly Fire -190 Cogmind --------- Core Integrity 0/850 Matter 265/300 Energy 60/100 System Corruption 13% Temperature Cool (0) Movement Walking (440) Ox4 Location -6/Factory Parts ------- > --- POWER (1) -------- (None) > --- PROPULSION (4) --- Flexi-carbon Leg > --- UTILITY (8) ------ Huge Storage Unit Advanced Visual Processing Unit Improved Signal Interpreter Relay Coupler [Sentry] (15) > --- WEAPON (2) ------- Precision Rocket Launcher Power Sword > --- INVENTORY (25) --- Improved Heat Sink Structural Scanner Improved Sensor Array Improved Terrain Scanner Advanced Terrain Scan Processor Cloaking Device Relay Coupler [Sentry] (29) Relay Coupler [Sentry] (28) Relay Coupler [Specialist] (24) System Backup Module Arc Projector Heavy Plasma Cannon Autogun Gauss Rifle Coil Gun Datajack Remote Datajack Chainsword Falx Peak State ------------ > --- POWER ------------ F-cell Engine > --- PROPULSION ------- Improved Medium Treads Wheel Wheel Compact Wheel > --- UTILITY ---------- Improved Cooling System Huge Storage Unit Advanced Visual Processing Unit Improved Signal Interpreter Improved Transmission Jammer Improved Shield Generator Relay Coupler [NC] Relay Coupler [Sentry] > --- WEAPON ----------- Coil Gun Precision Rocket Launcher > --- INVENTORY -------- Improved Deuterium Engine Light Angular Momentum Engine Wheel Compact Wheel Compact Wheel Improved Heat Sink Structural Scanner Improved Sensor Array Improved Terrain Scanner Advanced Terrain Scan Processor Cloaking Device Relay Coupler [Sentry] Relay Coupler [Sentry] Relay Coupler [Specialist] System Backup Module Heavy Plasma Cannon Autogun Gauss Rifle Datajack Remote Datajack Chainsword Power Sword Falx [Rating: 57] Favorites ----------- Power Cooled Ion Engine Engine Cooled Ion Engine Power Core Light Nuclear Core Propulsion Armored Wheel Treads Light Treads Leg Aluminum Leg Wheel Armored Wheel Utility Huge Storage Unit Device Transmission Jammer Storage Huge Storage Unit Processor Advanced Visual Processing Unit Hackware Relay Coupler [Sentry] Protection Light Armor Plating Weapon Autogun Energy Gun Gatling Laser Energy Cannon Advanced Beam Cannon Ballistic Gun Autogun Launcher Rocket Launcher Special Weapon Remote Datajack Slashing Weapon Scythe Special Melee Weapon Datajack Build | -11 -10 -10 -9 -9 -9 -9 -7 -7 -7 -7 -6 ------- Run | Scr Mat Min Mat Sto Gar Rec Fac Gar Fac Gar Fac Slots Evolved 8 | . . . 2 . . . 4 . . . 2 Power . | . . . . . . . . . . . . Propulsion 2 | . . . . . . . . . . . 2 Utility 6 | . . . 2 . . . 4 . . . . Weapon . | . . . . . . . . . . . . Parts Attached 265 | 3 6 3 26 12 18 3 3 55 5 37 94 Power 22 | . . 1 6 1 . . 2 2 1 2 7 Engine 20 | . . 1 6 1 . . 1 2 . 2 7 Core 2 | . . . . . . . 1 . 1 . . Reactor . | . . . . . . . . . . . . Propulsion 43 | 2 . 1 9 . . . . 9 2 4 16 Treads 11 | 2 . 1 7 . . . . . . . 1 Leg 1 | . . . . . . . . . . . 1 Wheel 31 | . . . 2 . . . . 9 2 4 14 Hover . | . . . . . . . . . . . . Flight . | . . . . . . . . . . . . Utility 69 | . 3 1 7 1 5 2 1 16 1 6 26 Device 22 | . 2 . 3 . . . 1 5 . . 11 Storage 9 | . 1 . 2 . . . . 4 . . 2 Processor 6 | . . . 2 . . 2 . 1 . . 1 Hackware 11 | . . . . . . . . 1 . 5 5 Protection 21 | . . 1 . 1 5 . . 5 1 1 7 Artifact . | . . . . . . . . . . . . Weapon 131 | 1 3 . 4 10 13 1 . 28 1 25 45 Energy Gun 21 | 1 . . . . . . . 3 . 1 16 Energy Cannon 3 | . . . 1 . . . . 2 . . . Ballistic Gun 41 | . 3 . 3 6 7 1 . 13 . 5 3 Ballistic Cannon . | . . . . . . . . . . . . Launcher 20 | . . . . 1 3 . . 5 . 4 7 Special Weapon 6 | . . . . . . . . . . . 6 Impact Weapon . | . . . . . . . . . . . . Slashing Weapon 29 | . . . . 3 3 . . 5 1 6 11 Piercing Weapon . | . . . . . . . . . . . . Special Melee Weapon 11 | . . . . . . . . . . 9 2 Unidentified Prototypes 7 | . . . 3 . . . 1 . . . 3 Corrupted Parts 1 | . . . . . . . . . . . 1 System Corruption 7 | . . . . . . . . . . . 7 Parts Lost 66 | . . . 3 3 3 . . 19 . 2 36 Power 8 | . . . . 1 . . . 2 . . 5 Propulsion 21 | . . . 1 . . . . 4 . 2 14 Utility 25 | . . . 2 . 2 . . 9 . . 12 Weapon 12 | . . . . 2 1 . . 4 . . 5 Highest Loss Streak 9 | . . . 1 2 1 . . 8 . 1 9 Average Slot Usage (%) 96 | . 98 100 99 99 99 100 74 88 99 92 96 Engine 8 | . 14 14 11 11 11 11 6 6 4 4 5 Treads 7 | . 28 28 20 . . . . . . . . Wheel 13 | . . . 1 22 22 22 15 14 14 14 24 Device 10 | . 12 3 15 11 1 . 5 13 15 7 10 Storage 10 | . 14 14 11 11 11 11 7 14 15 7 6 Processor 8 | . . . 11 15 3 7 7 12 15 7 8 Hackware 6 | . . . . . . . . . 7 21 18 Protection 8 | . . 10 5 6 28 25 15 8 7 7 5 Energy Gun 2 | . 7 . . . . . . 3 . . 4 Ballistic Gun 14 | . 20 28 21 21 21 22 15 9 13 8 2 Slashing Weapon 1 | . . . . . . . . 1 1 3 2 Naked Turns . | . . . . . . . . . . . . Heaviest Build 116 | 14 32 34 95 98 104 103 101 116 98 116 115 Greatest Support 56 | 40 40 40 43 24 24 24 24 24 24 24 56 Greatest Overweight (x) 9 | . . . 3 4 4 4 4 8 8 9 9 Average Overweight (x) 2 | . . . . 3 4 4 3 3 3 3 1 Largest Inventory Capacity 25 | 8 15 15 25 25 25 25 25 25 25 25 25 Average Capacity 21 | 8 12 15 15 25 25 25 25 25 25 25 25 Most Carried 25 | 6 15 15 16 17 15 19 20 25 25 25 25 Average Carried 18 | 4 9 14 14 15 14 17 19 20 24 24 22 Final Capacity 25 | 8 15 15 25 25 25 25 25 25 25 25 25 Final Carried 25 | 5 15 14 16 15 15 19 20 23 25 25 19 Class Distribution -------------------- 52% | Mutant 33% | Bothacker-Mutant 14% | Scavenger-Mutant Dominant Class ---------------- Mutant | -10/Materials Mutant | -10/Mines Mutant | -9/Materials Mutant | -9/Storage Mutant | -9/Garrison Mutant | -9/Recycling Mutant | -7/Factory Scavenger-Mutant | -7/Garrison Bothacker-Mutant | -7/Factory Bothacker-Mutant | -7/Garrison Bothacker-Mutant | -6/Factory Resources | -11 -10 -10 -9 -9 -9 -9 -7 -7 -7 -7 -6 ----------- Run | Scr Mat Min Mat Sto Gar Rec Fac Gar Fac Gar Fac Matter Collected 5593 | 230 324 158 873 680 325 139 . 1019 59 548 1238 Remotely . | . . . . . . . . . . . . Salvage Created 8751 | 15 483 188 995 1250 516 215 . 1591 12 1169 2317 Parts 452 | 3 24 15 70 84 36 5 . 53 5 49 108 Haulers Intercepted 9 | . 1 . 5 2 . . . . . . 1 Recyclers Shooed 9 | 1 . . 1 1 . . . . . . 6 Parts Field Recycled . | . . . . . . . . . . . . Retrieved Matter . | . . . . . . . . . . . . Parts Self-Destructed . | . . . . . . . . . . . . Prevented . | . . . . . . . . . . . . Kills | -11 -10 -10 -9 -9 -9 -9 -7 -7 -7 -7 -6 ------- Run | Scr Mat Min Mat Sto Gar Rec Fac Gar Fac Gar Fac Combat Hostiles Destroyed 145 | . 9 6 21 24 16 1 . 26 . 17 25 Melee 5 | . . . . . . . . . . 3 2 Guns 99 | . 9 6 21 20 9 1 . 16 . 3 14 Cannons 1 | . . . . . . . . 1 . . . AOE 38 | . . . . 4 7 . . 9 . 11 7 Classes Destroyed 15 | 1 4 1 2 3 . 1 . 2 . . 1 Worker 17 | . 1 . 3 5 . . . . . . 8 Builder 8 | . . . . 2 . 1 . . 1 . 4 Tunneler 3 | 1 . . . . . . . . . . 2 Hauler 9 | . 1 . 5 2 . . . . . . 1 Recycler 12 | . . . . 2 . 2 . . . . 8 Operator 2 | . . . 1 1 . . . . . . . Drone 1 | . . . . . . 1 . . . . . Watcher 5 | . 2 . 1 1 . . . . . . 1 Swarmer 40 | . . 3 10 4 4 . . 3 . 9 7 Grunt 75 | . 9 3 6 13 11 . . 20 . 6 7 Brawler 2 | . . . . . . . . 2 . . . Duelist 3 | . . . . 1 . . . . . 1 1 Sentry 13 | . . . 5 6 1 . . . . 1 . Hunter 5 | . . . . . . . . 1 . . 4 Programmer 7 | . . . . . . . . . . . 7 Best Kill Streak 12 | 1 3 3 7 12 6 3 . 3 1 7 10 Combat Bots Only 7 | . 2 3 4 6 6 1 . 3 . 7 3 Max Kills in Single Turn 6 | 1 1 1 2 4 2 2 . 2 1 3 6 Gunslinging 1 | . . . 1 . . . . . . . . Exploded 3 | . . . . 2 2 . . 2 . 3 3 Melee 1 | . . . . . . . . . . 1 1 Uniques/NPCs Destroyed . | . . . . . . . . . . . . Combat | -11 -10 -10 -9 -9 -9 -9 -7 -7 -7 -7 -6 -------- Run | Scr Mat Min Mat Sto Gar Rec Fac Gar Fac Gar Fac Damage Taken 9763 | . 410 186 1051 839 291 . 46 2030 69 908 3933 Core 1725 | . 100 38 113 132 34 . . 374 . 79 855 Absorbed by Shields 227 | . . . . . . . . . . . 227 Core Remaining (%) 52 | 100 . 44 . . . 30 . . . 35 . Volleys Fired 515 | 5 38 19 93 74 29 6 2 102 . 27 120 Largest 2 | 2 2 2 2 2 2 2 2 2 . 2 2 Hottest 160 | 90 90 46 46 46 46 46 46 130 . 85 160 Shots Fired 927 | 10 76 38 186 143 51 12 4 187 . 44 176 Gun 852 | 10 76 38 186 140 44 12 4 165 . 38 139 Cannon 12 | . . . . . . . . 12 . . . Launcher 34 | . . . . 3 7 . . 10 . 6 8 Special 29 | . . . . . . . . . . . 29 Kinetic 684 | . 66 38 186 140 44 12 4 129 . 33 32 Thermal 166 | 10 10 . . . . . . 48 . 5 93 Explosive 34 | . . . . 3 7 . . 10 . 6 8 Electromagnetic 14 | . . . . . . . . . . . 14 Robot Hit Streak 24 | 3 11 14 11 24 8 9 7 24 . 11 15 Robot Miss Streak 6 | 2 2 3 6 5 2 1 1 4 . 2 6 Penetration Max 1 | . . . . . . . . . . . 1 Secondary Targets 5 | . 1 . 1 . 2 . . . . 1 . Max Gunslinging Chain 1 | . 1 . 1 . 1 . . . . 1 . Shots Hit Robots 739 | 6 53 24 107 102 26 9 3 163 1 79 166 Core Hits 388 | 2 23 11 42 54 26 5 1 75 1 44 104 Critical Kills 1 | . 1 . . . . . . . . . . Critical Parts Destroyed . | . . . . . . . . . . . . Critical Strikes 8 | . 2 . . . . . . 1 . 4 1 Burn 3 | . 1 . . . . . . 1 . . 1 Destroy 1 | . 1 . . . . . . . . . . Sever 4 | . . . . . . . . . . 4 . Melee Attacks 149 | . . . . 6 2 . . 46 2 60 33 Impact . | . . . . . . . . . . . . Slashing 132 | . . . . 6 2 . . 46 2 45 31 Piercing . | . . . . . . . . . . . . Sneak Attacks 28 | . . . . 1 . . . . 1 10 16 Combat Hostiles 10 | . . . . . . . . . . 9 1 Follow-up Attacks . | . . . . . . . . . . . . Damage Inflicted 21542 | 69 726 363 1679 2372 863 151 42 4942 98 4357 5880 Guns 9652 | 69 726 363 1679 1495 344 151 42 1703 . 307 2773 Cannons 144 | . . . . . . . . 144 . . . Explosions 4727 | . . . . 802 519 . . 994 . 902 1510 Melee 6988 | . . . . 75 . . . 2101 98 3148 1566 Ramming 31 | . . . . . . . . . . . 31 Kinetic 6952 | . 639 363 1679 1495 344 151 42 1369 . 307 563 Thermal 2781 | 69 87 . . . . . . 478 . . 2147 Explosive 4649 | . . . . 802 519 . . 994 . 902 1432 Electromagnetic 141 | . . . . . . . . . . . 141 Impact . | . . . . . . . . . . . . Slashing 6988 | . . . . 75 . . . 2101 98 3148 1566 Piercing . | . . . . . . . . . . . . Highest Corruption 13 | . 2 2 . . . . . . . . 13 Average Corruption 3 | . 2 2 . . . . . . . . 4 Corruption Purged . | . . . . . . . . . . . . Effects 80 | . 10 14 . . . . . . . . 56 Message Errors 34 | . 4 10 . . . . . . . . 20 Matter Fused 10 | . . . . . . . . . . . 10 Heat Flow Errors 13 | . 2 1 . . . . . . . . 10 Energy Discharges 11 | . 1 2 . . . . . . . . 8 Data Loss (minor) 9 | . 3 1 . . . . . . . . 5 Data Loss (major) 1 | . . . . . . . . . . . 1 Misfires 1 | . . . . . . . . . . . 1 Weapon Failures 1 | . . . . . . . . . . . 1 Overload Shots . | . . . . . . . . . . . . Overflow Damage 959 | . . . . 86 47 . . 138 . 329 359 Projectiles . | . . . . . . . . . . . . Explosions 202 | . . . . 86 47 . . 29 . 1 39 Melee 757 | . . . . . . . . 109 . 328 320 Knockbacks 2 | . . . . . . . . . . . 2 Impact 2 | . . . . . . . . . . . 2 Kinetic . | . . . . . . . . . . . . Secondary . | . . . . . . . . . . . . Self-Inflicted Damage 445 | . . . . . 19 . . 97 . 64 265 Shots 12 | . . . . . 1 . . 4 . 2 5 Rammed 2 | . . . . . . . . . . . 2 Targets Rammed 2 | . . . . . . . . . . . 2 Kicked . | . . . . . . . . . . . . Crushed . | . . . . . . . . . . . . Highest Temperature 332 | 132 236 227 51 22 32 8 302 38 . 22 332 Average Temperature 38 | 74 54 43 12 4 10 6 159 8 . 7 96 Received Heat Transfer 2525 | . 234 87 315 336 114 . . 900 . 156 383 Siege Activations . | . . . . . . . . . . . . Robots Corrupted . | . . . . . . . . . . . . Combat Hostiles . | . . . . . . . . . . . . Parts Fried 4 | . . . . . . . . . . . 4 Impact Corruptions 1 | . . . . . . . . . . . 1 Robots Melted 2 | . . . . . . . . . . . 2 Combat Hostiles 2 | . . . . . . . . . . . 2 Parts Melted 12 | . 1 . . . . . . . . . 11 Heat Transferred 6207 | 186 297 . . . . . . 1110 . . 4614 Parts Sabotaged . | . . . . . . . . . . . . Parts Stolen . | . . . . . . . . . . . . Parts Stripped . | . . . . . . . . . . . . Power Chain Reactions . | . . . . . . . . . . . . Missiles Intercepted . | . . . . . . . . . . . . Alert | -11 -10 -10 -9 -9 -9 -9 -7 -7 -7 -7 -6 ------- Run | Scr Mat Min Mat Sto Gar Rec Fac Gar Fac Gar Fac Peak Influence 1509 | 5 204 207 268 421 578 481 1101 1509 816 1060 866 Initial 1101 | . 3 62 . . 103 259 1101 770 791 434 556 Average 437 | 2 100 72 75 268 359 391 1101 1046 776 777 363 Maximum Alert Level 4 | . 1 1 1 2 2 2 4 4 3 3 3 Low Security (%) 41 | 100 87 95 95 13 37 . . . . . 37 Level 1 14 | . 12 4 4 79 6 57 . . . . 20 Level 2 15 | . . . . 6 55 42 . . 12 27 29 Level 3 21 | . . . . . . . . 61 87 72 11 Level 4 7 | . . . . . . . 100 38 . . . Level 5 . | . . . . . . . . . . . . High Security . | . . . . . . . . . . . . Max Security . | . . . . . . . . . . . . Squads Dispatched 23 | . 2 . 2 4 . . 1 . 1 . 13 Investigation 4 | . 2 . 2 . . . . . . . . Extermination 6 | . . . . . . . . . . . 6 Reinforcement 10 | . . . . 4 . . 1 . . . 5 Assault 2 | . . . . . . . . . 1 . 1 Garrison 1 | . . . . . . . . . . . 1 Intercept . | . . . . . . . . . . . . Construction Impeded 1 | . . . . 1 . . . . . . . Haulers Reinforced . | . . . . . . . . . . . . Active Scanning Responses . | . . . . . . . . . . . . Cargo Convoy Interrupts 1 | . . . . . . . . . . . 1 Stealth | -11 -10 -10 -9 -9 -9 -9 -7 -7 -7 -7 -6 --------- Run | Scr Mat Min Mat Sto Gar Rec Fac Gar Fac Gar Fac Distress Signals 6 | . 3 . 1 1 . . . . . . 1 Communications Jammed 58 | . . . . . . . . . . . 58 Distress Signals 58 | . . . . . . . . . . . 58 Times Spotted 254 | . 16 13 36 33 17 12 3 31 . 26 67 Peak Tracking Total 9 | . 4 4 6 9 7 4 1 7 1 6 8 Tactical Retreats 20 | . 1 1 2 1 . . . 4 . 4 7 Traps | -11 -10 -10 -9 -9 -9 -9 -7 -7 -7 -7 -6 ------- Run | Scr Mat Min Mat Sto Gar Rec Fac Gar Fac Gar Fac Traps Triggered 24 | . 2 . 1 1 4 . 1 2 3 10 . Indirectly . | . . . . . . . . . . . . Trap Hack Attempts . | . . . . . . . . . . . . Triggered . | . . . . . . . . . . . . Disarmed . | . . . . . . . . . . . . Reprogrammed . | . . . . . . . . . . . . Reused . | . . . . . . . . . . . . Traps Extracted . | . . . . . . . . . . . . Installed . | . . . . . . . . . . . . Triggered 2 | . . . . . . . . . . . 2 Machines | -11 -10 -10 -9 -9 -9 -9 -7 -7 -7 -7 -6 ---------- Run | Scr Mat Min Mat Sto Gar Rec Fac Gar Fac Gar Fac Machines Disabled 16 | . . . 2 2 1 . . 3 . 3 5 Max in Single Turn 3 | . . . 1 1 1 . . 1 . 1 3 Garrison Access 1 | . . . . . . . . . . . 1 Garrison Relay 7 | . . . . . 1 . . 3 . 3 . Machines Sabotaged . | . . . . . . . . . . . . Garrisons Compromised 1 | . . . . . . . . . . . 1 Overloaded Fab Kills . | . . . . . . . . . . . . Fab Network Shutdowns . | . . . . . . . . . . . . Hacking | -11 -10 -10 -9 -9 -9 -9 -7 -7 -7 -7 -6 --------- Run | Scr Mat Min Mat Sto Gar Rec Fac Gar Fac Gar Fac Machines Accessed 39 | . 9 . 6 7 . 7 1 . 3 . 6 Terminals 22 | . 6 . 4 5 . 2 . . 1 . 4 Fabricators . | . . . . . . . . . . . . Repair Stations 4 | . 1 . 1 1 . . . . . . 1 Recycling Units 7 | . 2 . . . . 5 . . . . . Scanalyzers 2 | . . . 1 . . . . . 1 . . Garrison Access 4 | . . . . 1 . . 1 . 1 . 1 Total Hacks 105 | . 20 . 29 19 . 10 1 . 14 . 12 Successful 64 | . 13 . 16 10 . 6 1 . 13 . 5 Failed 41 | . 7 . 13 9 . 4 . . 1 . 7 Catastrophic 4 | . . . 1 . . 1 . . . . 2 Database Lockouts . | . . . . . . . . . . . . Manual 53 | . 14 . 10 11 . 10 . . . . 8 Terminals 71 | . 16 . 24 16 . 5 . . 1 . 9 Fabricators . | . . . . . . . . . . . . Repair Stations 9 | . 2 . 3 2 . . . . . . 2 Recycling Units 7 | . 2 . . . . 5 . . . . . Scanalyzers 14 | . . . 2 . . . . . 12 . . Garrison Access 4 | . . . . 1 . . 1 . 1 . 1 Terminal Hacks 24 | . 5 . 11 6 . . . . 1 . 1 Part Schematic 3 | . 1 . 1 . . . . . . . 1 Robot Analysis 1 | . . . 1 . . . . . . . . Prototype ID Bank 2 | . 1 . 1 . . . . . . . . Open Door 2 | . . . . 2 . . . . . . . Level Access Points 1 | . 1 . . . . . . . . . . Branch Access Points 1 | . 1 . . . . . . . . . . Emergency Access Points 1 | . . . 1 . . . . . . . . Terminal Index 2 | . 1 . . 1 . . . . . . . Alert Level 1 | . . . 1 . . . . . . . . Unreport Threat 5 | . . . 3 2 . . . . . . . Locate Traps 1 | . . . . . . . . . 1 . . Hauler Manifests 1 | . . . 1 . . . . . . . . Zone Layout 3 | . . . 2 1 . . . . . . . Fabricator Hacks . | . . . . . . . . . . . . Repair Station Hacks 6 | . 2 . 1 1 . . . . . . 2 Scan Component 4 | . 1 . 1 1 . . . . . . 1 Repair 2 | . 1 . . . . . . . . . 1 Recycling Unit Hacks . | . . . . . . . . . . . . Scanalyzer 13 | . . . 2 . . . . . 11 . . Insert Component 6 | . . . 1 . . . . . 5 . . Analyze 7 | . . . 1 . . . . . 6 . . Garrison Access Hacks 4 | . . . . 1 . . 1 . 1 . 1 Unlock Access 3 | . . . . 1 . . 1 . 1 . . Seal Access 1 | . . . . . . . . . . . 1 Unauthorized Hacks 17 | . 6 . 2 2 . 6 . . . . 1 Terminals 10 | . 4 . 2 2 . 1 . . . . 1 Botnet 9 | . 4 . 2 1 . 1 . . . . 1 Operators 1 | . . . . 1 . . . . . . . Fabricators . | . . . . . . . . . . . . Repair Stations . | . . . . . . . . . . . . Recycling Units 7 | . 2 . . . . 5 . . . . . Tunnel 7 | . 2 . . . . 5 . . . . . Scanalyzers . | . . . . . . . . . . . . Garrison Access . | . . . . . . . . . . . . Data Cores Recovered . | . . . . . . . . . . . . Used . | . . . . . . . . . . . . Hacking Detections 25 | . 6 . 6 5 . 2 1 . 1 . 4 Full Trace Events 1 | . . . 1 . . . . . . . . Feedback Events . | . . . . . . . . . . . . Feedback Blocked . | . . . . . . . . . . . . Robot Schematics Acquired . | . . . . . . . . . . . . Robots Built . | . . . . . . . . . . . . Matter . | . . . . . . . . . . . . Time . | . . . . . . . . . . . . Total Robot Build Rating . | . . . . . . . . . . . . Part Schematics Acquired 9 | . 1 . 2 . . . . . 5 . 1 Parts Built . | . . . . . . . . . . . . Matter . | . . . . . . . . . . . . Time . | . . . . . . . . . . . . Total Part Build Rating . | . . . . . . . . . . . . Parts Repaired 2 | . 1 . . . . . . . . . 1 Time 70 | . 32 . . . . . . . . . 38 Parts Recycled . | . . . . . . . . . . . . Recycled Matter . | . . . . . . . . . . . . Retrieved Matter . | . . . . . . . . . . . . Retrieved Components . | . . . . . . . . . . . . Parts Scanalyzed 6 | . . . 1 . . . . . 5 . . Part Schematics Acquired 6 | . . . 1 . . . . . 5 . . Parts Damaged . | . . . . . . . . . . . . Bothacking | -11 -10 -10 -9 -9 -9 -9 -7 -7 -7 -7 -6 ------------ Run | Scr Mat Min Mat Sto Gar Rec Fac Gar Fac Gar Fac Used RIF Installer 3 | . . . . . 1 . . 1 . 1 . Coupler Efficiency 1 | . . . . . . . . . . 1 . Program Shield 1 | . . . . . . . . 1 . . . Robots Hacked 24 | . . . . . . . . . . 8 16 Non-combat 10 | . . . . . . . . . . . 10 Combat 14 | . . . . . . . . . . 8 6 Robot Hacks Applied 32 | . . . . . . . . . . 9 23 no_distress 1 | . . . . . . . . . . . 1 hold_bot 2 | . . . . . . . . . . . 2 map_walls 2 | . . . . . . . . . . . 2 randomize_corridors 1 | . . . . . . . . . . . 1 drop_inventory 1 | . . . . . . . . . . . 1 ignore_parts 1 | . . . . . . . . . . . 1 purge_threat 3 | . . . . . . . . . . . 3 map_route 1 | . . . . . . . . . . . 1 overload_power 2 | . . . . . . . . . . . 2 amplify_resonance 1 | . . . . . . . . . . . 1 reboot_system 3 | . . . . . . . . . . 3 . overwrite_iff 10 | . . . . . . . . . . 3 7 formatsys_high 4 | . . . . . . . . . . 3 1 Relay Couplers Released 27 | . . . . . 5 . . 12 . 10 . Machine Destruction 27 | . . . . . 5 . . 12 . 10 . Attached 11 | . . . . . . . . 1 . 5 5 Robots Rewired . | . . . . . . . . . . . . Allies Hacked . | . . . . . . . . . . . . Hacks Repelled . | . . . . . . . . . . . . Allies | -11 -10 -10 -9 -9 -9 -9 -7 -7 -7 -7 -6 -------- Run | Scr Mat Min Mat Sto Gar Rec Fac Gar Fac Gar Fac Total Allies 14 | . . 3 . . . . . . . 5 6 Largest Group 3 | . . 3 2 . . . . . . 2 2 Highest-Rated Group 64 | . . 40 24 . . . . . . 64 53 Highest-Rated Ally 32 | . . 16 16 . . . . . . 32 32 Total Orders . | . . . . . . . . . . . . Ally Attacks 60 | . . 10 6 . . . . . . 19 25 Total Damage 1082 | . . 65 77 . . . . . . 433 507 Kills 8 | . . 4 . . . . . . . 2 2 Allies Corrupted 1 | . . . . . . . . . . . 1 Allies Melted 2 | . . . . . . . . . . . 2 Intel | -11 -10 -10 -9 -9 -9 -9 -7 -7 -7 -7 -6 ------- Run | Scr Mat Min Mat Sto Gar Rec Fac Gar Fac Gar Fac Robot Analysis Total 1 | . . . 1 . . . . . . . . Derelict Logs Recovered 1 | . . 1 . . . . . . . . . Drone Launches . | . . . . . . . . . . . . Drone Recoveries . | . . . . . . . . . . . . Exploration | -11 -10 -10 -9 -9 -9 -9 -7 -7 -7 -7 -6 ------------- Run | Scr Mat Min Mat Sto Gar Rec Fac Gar Fac Gar Fac Turns Passed 12878 | 46 1134 1175 1711 933 1131 344 177 1926 459 1322 2520 Spaces Moved 6834 | 18 578 686 843 429 650 212 110 904 302 581 1521 Core . | . . . . . . . . . . . . Treads 2019 | 12 578 686 743 . . . . . . . . Legs 6 | 6 . . . . . . . . . . . Wheels 4809 | . . . 100 429 650 212 110 904 302 581 1521 Hover . | . . . . . . . . . . . . Flight . | . . . . . . . . . . . . Fastest Speed 105 | 120 160 160 105 135 150 150 135 135 135 135 107 Average Speed 145 | 146 160 160 156 144 150 150 149 148 144 148 119 Slowest Speed 225 | 160 160 160 160 150 150 150 150 210 210 225 215 Overloaded Moves . | . . . . . . . . . . . . Propulsion Burnouts . | . . . . . . . . . . . . Robots Hopped . | . . . . . . . . . . . . Cave-ins Triggered . | . . . . . . . . . . . . Exploration Rate (%) 50 | 2 97 99 61 72 53 44 3 68 7 64 33 Regions Visited 11 Branch Regions 3 Pre-discovered Areas 8 | . 2 1 . . . 5 . . . . . Known Exits Taken 6 | . 1 1 1 1 . . 1 . 1 . . Unknown Exits Taken 2 | 1 . . . . . 1 . . . . . Scrap Searched 1 | . . 1 . . . . . . . . . Spaces Dug 9 | . . . . 2 . . . . 1 . 6 Terrain Destroyed 211 | . . . . 21 30 . . 33 1 29 97 Melee 9 | . . . . 2 . . . . 1 . 6 Projectile . | . . . . . . . . . . . . AOE 202 | . . . . 19 30 . . 33 . 29 91 Terrain Rammed . | . . . . . . . . . . . . Walls Destroyed . | . . . . . . . . . . . . Machines Disabled . | . . . . . . . . . . . . Actions | -11 -10 -10 -9 -9 -9 -9 -7 -7 -7 -7 -6 --------- Run | Scr Mat Min Mat Sto Gar Rec Fac Gar Fac Gar Fac Total 8663 | 28 725 732 1073 597 749 227 119 1199 324 908 1982 Wait 556 | . 85 24 66 72 11 . . 44 2 101 151 Move 6823 | 17 577 685 842 428 649 211 109 903 301 580 1521 Hop . | . . . . . . . . . . . . Pick Up 148 | 1 14 . 21 3 5 5 3 31 9 15 41 Fast Attach 8 | . 2 . . 1 . . 1 2 . 1 1 Attach 93 | 2 2 . 9 3 4 1 2 23 3 5 39 Detach 3 | . . . . . . 1 . . . . 2 Swap 165 | 1 2 3 17 8 14 2 . 30 2 31 55 Drop 89 | 2 5 1 25 2 3 1 2 10 5 16 17 Fire 515 | 5 38 19 93 74 29 6 2 102 . 27 120 Melee 149 | . . . . 6 2 . . 46 2 60 33 Ram 2 | . . . . . . . . . . . 2 Kick . | . . . . . . . . . . . . Crush . | . . . . . . . . . . . . Escape Stasis 112 | . . . . . 32 . . 8 . 72 . Rewire . | . . . . . . . . . . . . Trap . | . . . . . . . . . . . . Miscellaneous . | . . . . . . . . . . . . Route ------- -11/Scrapyard -10/Materials (discovered 4 exits: *Mat x3 / *Min) -10/Mines (discovered 2 exits: *Mat x2) -9/Materials (discovered 5 exits: *Mat x2 / *Min x2 / *Sto) -9/Storage (discovered 2 exits: Mat / Gar) -9/Garrison (discovered 2 exits: *Rec x2) -9/Recycling -7/Factory (discovered 2 exits: *Fac / Gar) -7/Garrison (discovered 2 exits: *Fac x2) -7/Factory -7/Garrison (discovered 2 exits: *Fac x2) -6/Factory (discovered 3 exits: [*Fac x2] / [*Low]) History --------- Turn | Location | Event 1 | -11/Scrapyard | Discovered new exit (range 3) 47 | -11/Scrapyard | Entered Materials 271 | -10/Materials | Discovered new exit (range 4) 307 | -10/Materials | Build established: Mutant 317 | -10/Materials | Identified exit to Mines 317 | -10/Materials | Identified exit to Materials 832 | -10/Materials | Repaired Autogun 1181 | -10/Materials | Entered Mines 1185 | -10/Mines | Met a Derelict bent on vengeance 1266 | -10/Mines | Learned 2 Materials zone layouts 1277 | -10/Mines | Discovered exit to Materials (range 12) 1497 | -10/Mines | Core integrity fell below 50% 1585 | -10/Mines | Discovered exit to Materials (range 9) 1588 | -10/Mines | Assisted by bots powering up and referring to "LRC-V3" 1867 | -10/Mines | Learned location of Storage (-9) 2356 | -10/Mines | Entered Materials 2356 | -9/Materials | Accompanied by 2 allies 2356 | -9/Materials | Evolved 2 slots: Utility x2 2357 | -9/Materials | Identified exit to Materials 2406 | -9/Materials | Discovered new exit (range 16) 2633 | -9/Materials | Discovered new exit (range 15) 3001 | -9/Materials | Discovered new exit (range 6) 3090 | -9/Materials | Identified exit to Mines 3151 | -9/Materials | Identified exit to Storage 3659 | -9/Materials | Discovered exit to Materials (range 16) 4067 | -9/Materials | Entered Storage 4954 | -9/Storage | Core integrity fell below 50% 4988 | -9/Storage | Identified exit to Garrison 4994 | -9/Storage | Discovered exit to Materials (range 11) 5000 | -9/Storage | Entered Garrison 5099 | -9/Garrison | Triggered checkpoint 5276 | -9/Garrison | Discovered new exit (range 12) 5417 | -9/Garrison | Triggered checkpoint 5550 | -9/Garrison | Discovered new exit (range 11) 5580 | -9/Garrison | Installed Relay Interface Framework 5824 | -9/Garrison | Triggered checkpoint 5868 | -9/Garrison | Garrison Relay disabled 6065 | -9/Garrison | Spotted B-75 Beast 6078 | -9/Garrison | Spotted B-75 Beast 6131 | -9/Garrison | Entered Recycling 6190 | -9/Recycling | Spotter reported a threat 6206 | -9/Recycling | Spotter reported a threat 6243 | -9/Recycling | Spotter reported a threat 6290 | -9/Recycling | Spotter reported a threat 6304 | -9/Recycling | Spotter reported a threat 6331 | -9/Recycling | Spotter reported a threat 6331 | -9/Recycling | Spotter reported a threat 6333 | -9/Recycling | Spotter reported a threat 6345 | -9/Recycling | Spotter reported a threat 6359 | -9/Recycling | Spotter reported a threat 6386 | -9/Recycling | Spotter reported a threat 6389 | -9/Recycling | Spotter reported a threat 6391 | -9/Recycling | Discovered new exit (range 19) 6412 | -9/Recycling | Spotter reported a threat 6433 | -9/Recycling | Spotter reported a threat 6433 | -9/Recycling | Spotter reported a threat 6475 | -9/Recycling | Entered Factory 6475 | -7/Factory | Evolved 4 slots: Utility x4 6643 | -7/Factory | Identified exit to Garrison 6649 | -7/Factory | Discovered new exit (range 12) 6652 | -7/Factory | Entered Garrison 6660 | -7/Garrison | Expanded RIF knowledge: Program Shield 6673 | -7/Garrison | Triggered checkpoint 6965 | -7/Garrison | Build established: Scavenger-Mutant 7246 | -7/Garrison | Lost 8 parts (1p2n4u1w) 7284 | -7/Garrison | Triggered checkpoint 7353 | -7/Garrison | Lost 3 parts (3u) 7816 | -7/Garrison | Triggered checkpoint 8197 | -7/Garrison | Discovered new exit (range 19) 8215 | -7/Garrison | Triggered checkpoint 8260 | -7/Garrison | Garrison Relay disabled 8378 | -7/Garrison | Triggered checkpoint 8464 | -7/Garrison | Triggered checkpoint 8467 | -7/Garrison | Core integrity fell below 50% 8503 | -7/Garrison | Garrison Relay disabled 8560 | -7/Garrison | Discovered new exit (range 12) 8578 | -7/Garrison | Entered Factory 8818 | -7/Factory | Build established: Bothacker-Mutant 8978 | -7/Factory | First assault squad dispatched 9031 | -7/Factory | Identified exit to Garrison 9037 | -7/Factory | Entered Garrison 9044 | -7/Garrison | Expanded RIF knowledge: Coupler Efficiency 9162 | -7/Garrison | Triggered checkpoint 9187 | -7/Garrison | Garrison Relay disabled 9264 | -7/Garrison | Triggered checkpoint 9388 | -7/Garrison | Triggered checkpoint 9403 | -7/Garrison | Triggered checkpoint 9429 | -7/Garrison | Destroyed 7 combat bots 9644 | -7/Garrison | Discovered new exit (range 9) 9700 | -7/Garrison | Triggered checkpoint 9769 | -7/Garrison | Garrison Relay disabled 9973 | -7/Garrison | Discovered new exit (range 13) 10102 | -7/Garrison | Triggered checkpoint 10245 | -7/Garrison | Garrison Relay disabled 10359 | -7/Garrison | Entered Factory 10359 | -6/Factory | Evolved 2 slots: Propulsion x2 10554 | -6/Factory | Discovered new exit (range 15) 10813 | -6/Factory | Discovered new exit (range 186) 10951 | -6/Factory | Repaired Transmission Jammer 11152 | -6/Factory | Garrison activated, responded to threat 11780 | -6/Factory | Lost 9 parts (1p2n4u2w) 12186 | -6/Factory | Cargo convoy interrupted 12483 | -6/Factory | Discovered new exit (range 15) 12599 | -6/Factory | Core integrity fell below 50% 12629 | -6/Factory | Lost 6 parts (3n1u2w) 12803 | -6/Factory | Core integrity fell below 20% 12809 | -6/Factory | First assault squad dispatched 12833 | -6/Factory | Lost 8 parts (2p3n2u1w) 12878 | -6/Factory | System corruption reached 10% 12879 | -6/Factory | Destroyed self with Precision Rocket Launcher Last Messages --------------- Slug penetrates Wall. Penetrated by Slug. Com. Wheel destroyed. Imp. Medium Treads destroyed. Relay Coupler [NC] destroyed. U58R F U:BMHQWIAIK8TIUUEF7OK /P Wheel destroyed. Integrated Corrupted Flexi-carbon Leg (+7). Penetrated by Slug. T-07 Excavator destroyed. Map ----- +----------------------------------------------------+ | ??? ????????????????????????????????????????????? | | ????? ??#####????????????????????????????????????? | | ######/## #????????????????????????????????????? | | #????????#???????????????????????????? | | ######### #??????? #???????????????????????????? | | ????????## ##?????? #??? +??????????????????????? | | ?????????# #??????" #? #??????????????????????? | | ########## #????? " # #??????????????????????? | | # #????" +????????????? ??????? | | """"" # #??? #??????????????? #?????? | | "" F" # #?? #??????????????# #?????? | | "" "" # ### ##??????????????# #?????? | | #%# #??????????????# #?????? | | ]] #%#### #??????????????# #?????? | | ] + ????????? #?????? | | # ##+#########?????######+##### #?????? | | ####+#####%##% #?????# ## #?????? | | ??# ### % # % #?????# ! ## #?????? | | ??# /%! #?????# ! ## #?????? | | ??# ### # ! #?????# ## #?????? | | ??## ##?##+####/#######?????# * ## #?????? | | #### #?? ?# #???????????? ## #?????? | | ## """ # #?????????????? ## #?????? | | ## """ # #??####?????????? ## ##????? | | ## """ #k###################+### ###### | | ## # % g l@ "" | | ########## g T" | | u % h h | | #########+### """ #### ###### | | ???????# # """ ######+#######? | | ^ ??????# # """ # #? | | ######?????# # """ # #? | | #??????????#!! # # #? | | #???????????#!! # """ # #? | | ????????????# # """ # #? | | ????????????# # """ # "" "" #? | | ????????????# # # "" "" #? | | ??????????############# # """ """ #? | | ??????????? # """ # """ """ #? | | ?????????? """ """ #k """ # """ """ #? | | ?????????# """ """ + """ # ## | | ?????????# """ """ # """ # + | | ???????????# # ################ | | ???????????# """ """ # """ #??????????????? | | ???????????# """ """ # """ #??????????????? | | ???????????# """ """ # """ #??????????????? | | ???????????# # """ #??????????????? | | ???????????# ! # #??????????????? | | ???????????# # """ #??????????????? | | ???????????# ## """ #??????????????? | +----------------------------------------------------+ Best States ------------- Heat Dissipation 64 Energy Generation 19 Energy Capacity 500 Matter Stores 650 Matter Capacity 650 Sight Range 20 Robot Scan Range 15 Terrain Scan Range 16 Terrain Scan Density 10 Jamming Range 12 Armor Coverage 600 Propulsion Shielding 66 Evasion (%) 40 Targeting Accuracy 5 Armor Integrity Analysis 20 Recoil Reduction 2 Energy Filtering 30 Relay Coupler Types 94 Relay Coupler Value 4 Item Schematics ----------------- Datajack | -10/Materials | Hacked Lrg. Storage Unit | -9/Materials | Hacked Arm. Wheel | -9/Materials | Scanalyzed Rocket Launcher | -7/Factory | Scanalyzed Scythe | -7/Factory | Scanalyzed Imp. Terrain Scanner | -7/Factory | Scanalyzed Autogun | -7/Factory | Scanalyzed Hrd. Heavy Armor Plating | -7/Factory | Scanalyzed Remote Datajack | -6/Factory | Hacked Robot Schematics ------------------ None Fabricated ------------ Nothing Alien Tech Used ----------------- None Achievements -------------- None Challenges ------------ None Game ------ Seed BlastUltimateConverter Manual? 0 Play Time 02:20:35 Cumulative 247.6 hours Start 2021.07.26 @ 01:21:56 End 2021.07.28 @ 23:44:54 Sessions 4 Manual Loads 0 Difficulty Rogue Special Mode None Game No. 298 Rogue 298 Adventurer 0 Explorer 0 Win Type - Total 3 Types 3/0/0/0/0/0/0/0/0 Lore% 64 Gallery% 81 Achievement% 60 Wizard Run 0 Options --------- ASCII 0 Keyboard 0 Movement Mouse Keybinds 1 Fullscreen 2 Font 24/Smallcaps Map View 76x50 Tactical HUD 1 Map Filters NONE Filters NONE Steam 1 RUN: 48331d91-2230-4425-81de-f198ab7ea303